bitfinex/quotes_ETHUSD_20251009
["timestamp","ask_amount","ask_price","bid_price","bid_amount"]
[1760016832340,1.92,4379.0,4377.5,0.6336]
[1760016832341,2.28373294,4378.8,4377.7,0.6336]
[1760016832544,0.0991,4379.0,4377.7,0.6336]
[1760016832545,0.1136,4378.4,4378.0,0.6336]
[1760016832747,0.1136,4378.4,4378.2,0.6336]
[1760016833245,0.1136,4378.4,4378.2,0.55644043]
[1760016833452,0.1136,4378.7,4378.2,0.5336]
[1760016834113,0.1136,4378.7,4377.7,2.28426028]
[1760016834114,0.0991,4378.6,4376.4,9.502]
[1760016834325,0.0991,4378.6,4377.4,6.385]
[1760016834326,2.28398932,4378.4,4377.4,6.385]
[1760016834513,2.38295278,4378.6,4377.5,0.02284408]
[1760016834713,2.28399516,4378.3,4377.5,0.02284408]
[1760016834945,2.28406496,4378.2,4377.5,0.02284408]
[1760016835246,0.0991,4379.2,4377.5,0.65644408]
[1760016835415,2.28387217,4378.6,4377.7,0.6336]
[1760016835743,0.0991,4379.2,4377.7,0.6336]
[1760016835955,0.0991,4379.2,4378.1,0.6336]
[1760016836123,0.0991,4379.2,4378.3,0.6336]
[1760016836334,2.28359813,4379.1,4378.5,0.6336]
[1760016836540,0.1145,4379.7,4378.6,0.02283835]
[1760016836844,2.39777781,4379.7,4378.5,2.91748579]
[1760016837014,2.4753,4381.1,4378.6,0.6336]
[1760016837015,0.099,4380.3,4378.6,0.6336]
[1760016837212,0.1003,4381.1,4379.1,0.6336]
[1760016837420,2.2829711,4380.3,4379.3,0.6336]
[1760016837658,2.45558643,4381.0,4379.5,0.6336]
[1760016837659,0.173,4381.0,4379.5,0.6336]
[1760016837946,0.6,4380.6,4379.7,0.6336]
[1760016838133,0.173,4381.0,4379.8,0.65643209]
[1760016838134,2.45561037,4381.0,4379.8,0.65643209]
[1760016838341,2.28263598,4380.9,4379.8,0.6336]
[1760016838511,2.28283616,4380.6,4379.7,0.6336]
[1760016838717,2.28285573,4380.5,4379.7,0.6336]
[1760016839360,0.173,4381.0,4379.9,0.6336]
[1760016839361,2.28307818,4380.1,4379.9,0.6336]
[1760016839527,0.099,4380.8,4380.1,0.6336]
[1760016839849,0.074,4381.0,4378.2,2.28402499]
[1760016839850,2.28310018,4380.1,4378.2,2.28402499]
[1760016840086,2.28315714,4379.9,4378.5,2.891]
[1760016840246,2.2836691,4379.0,4377.6,0.4592]
[1760016840446,2.28326141,4379.7,4377.7,2.485]
[1760016840447,2.28368994,4378.9,4377.7,2.485]
[1760016840647,2.28368994,4378.9,4377.9,2.28415188]
[1760016840956,2.28368994,4378.9,4377.3,0.001]
[1760016840957,0.48447178,4379.1,4377.3,0.001]
[1760016841159,0.70488973,4378.9,4377.3,0.001]
[1760016841372,0.48447178,4378.8,4377.4,3.976]
[1760016841559,2.28406078,4378.2,4377.3,0.001]
[1760016841757,2.28406078,4378.2,4377.4,8.05]
[1760016841950,0.48447178,4378.4,4377.5,2.2843669]
[1760016842147,2.28380729,4378.7,4377.7,0.6336]
[1760016842148,2.76847524,4378.3,4377.7,0.6336]
[1760016842467,2.28418774,4378.0,4377.8,6.532]
[1760016842669,2.28418774,4378.0,4377.9,0.6336]
[1760016842848,0.48452512,4378.2,4377.9,0.6336]
[1760016843044,2.28400699,4378.3,4377.9,0.6336]
[1760016843283,2.76863922,4378.2,4377.9,0.6336]
[1760016843479,2.28409584,4378.1,4378.0,7.1656]
[1760016843983,0.48458824,4378.1,4378.0,7.1656]
[1760016844361,0.48458824,4378.2,4378.1,0.6336]
[1760016844560,0.59818824,4378.5,4378.1,0.65644095]
[1760016844762,0.1136,4378.8,4378.4,0.6336]
[1760016845085,0.80746946,4379.3,4378.4,0.6336]
[1760016845086,0.48458824,4378.7,4378.6,2.91743501]
[1760016845292,0.48458824,4379.2,4378.9,0.6336]
[1760016845588,0.48458824,4379.7,4379.2,0.6336]
[1760016845774,2.76794744,4379.6,4379.4,0.6336]
[1760016846087,0.60558973,4380.1,4378.3,0.6336]
[1760016846088,2.28380337,4378.7,4378.3,0.6336]
[1760016846253,0.60558973,4379.7,4377.1,0.4592]
[1760016846254,2.28403933,4378.3,4377.3,2.28547073]
[1760016846453,0.099,4378.6,4378.0,2.375]
[1760016846668,2.28404054,4378.3,4378.2,0.6336]
[1760016846849,2.28394775,4378.4,4378.2,0.6336]
[1760016847202,2.28392716,4378.5,4378.2,0.6336]
[1760016847352,0.48575231,4378.4,4378.2,0.6336]
[1760016847550,0.60601066,4379.0,4378.2,0.6336]
[1760016847551,0.48575231,4378.9,4378.4,2.91749808]
[1760016847789,0.48575231,4379.1,4378.5,0.48203887]
[1760016847964,0.48495231,4379.4,4378.7,0.6336]
[1760016848157,2.28347076,4379.3,4378.9,0.6336]
[1760016848357,0.60601066,4379.7,4379.1,0.6336]
[1760016848773,0.60601066,4379.8,4379.1,0.6336]
[1760016848979,2.88924271,4379.8,4379.1,0.6336]
[1760016849193,2.88922325,4379.8,4379.1,0.6336]
[1760016849394,2.28336865,4379.5,4379.1,0.6336]
[1760016849599,2.28332243,4379.6,4379.1,0.6336]
[1760016849892,0.60601066,4380.0,4379.1,0.6336]
[1760016850110,2.88908639,4380.1,4379.1,0.6336]
[1760016850388,2.28319386,4379.9,4379.1,0.6336]
[1760016850597,2.28321913,4379.8,4379.1,0.6336]
[1760016850768,0.60601066,4380.2,4379.1,0.6336]
[1760016850769,2.28315276,4380.0,4379.1,0.6336]
[1760016850969,0.60601066,4380.3,4379.3,0.6336]
[1760016851174,2.28289116,4380.5,4379.6,0.6336]
[1760016851389,2.28289116,4380.5,4379.8,0.6336]
[1760016851390,2.28289355,4380.5,4379.8,0.6336]
[1760016851562,0.60601066,4380.8,4379.8,0.6336]
[1760016851905,2.28289293,4380.5,4379.8,0.6336]
[1760016852065,2.28335311,4379.6,4378.4,9.9602]
[1760016852423,2.28294865,4380.3,4378.5,8.907]
[1760016852424,2.28349985,4379.3,4378.5,8.907]
[1760016852694,2.28349985,4379.3,4378.6,0.6336]
[1760016852899,2.28350283,4379.3,4378.7,8.907]
[1760016853094,2.28331354,4379.6,4377.8,0.001]
[1760016853095,2.28374523,4378.8,4377.8,0.001]
[1760016853310,2.2837733,4378.8,4377.9,4.554]
[1760016853501,2.28367695,4379.0,4378.0,6.91097607]
[1760016853795,0.60601066,4379.6,4378.0,6.88814329]
[1760016853997,2.28363922,4379.0,4378.0,6.88814001]
[1760016854204,0.114,4379.7,4378.1,6.531]
[1760016854205,2.28382186,4378.7,4378.1,6.531]
[1760016854362,2.38307033,4379.3,4378.1,8.906]
[1760016854561,2.38307033,4379.3,4378.2,0.6336]
[1760016854771,2.38307033,4379.3,4377.8,0.001]
[1760016854772,2.28420018,4377.9,4377.8,0.001]
[1760016855470,2.28420018,4377.9,4377.8,0.6346]
[1760016855676,0.0996,4378.6,4377.8,0.6346]
[1760016855908,2.28362853,4379.0,4377.8,0.65744252]
[1760016856085,0.1136,4378.2,4377.8,0.65744252]
[1760016856408,2.0196,4379.3,4377.8,0.6346]
[1760016856409,2.52601066,4379.2,4377.8,0.6346]
[1760016856609,2.2839915,4378.3,4377.8,0.6346]
[1760016856819,0.1136,4378.4,4377.8,0.6346]
[1760016857111,2.28336054,4379.6,4377.8,0.6346]
[1760016857112,1.92,4379.6,4378.1,2.28409508]
[1760016857272,0.114,4379.7,4378.2,0.02284043]
[1760016857472,2.28343149,4379.4,4378.6,0.6336]
[1760016857693,0.114,4379.7,4378.8,0.6336]
[1760016857880,0.1136,4379.5,4378.8,0.7472]
[1760016858086,2.28342765,4379.4,4378.8,0.7472]
[1760016858283,0.1136,4379.5,4378.8,0.7472]
[1760016858596,2.28379363,4378.7,4378.3,0.6336]
[1760016858768,0.1136,4378.8,4378.4,0.02283939]
[1760016858972,0.1136,4379.2,4378.5,0.1136]
[1760016859206,0.1136,4379.2,4378.6,0.65643835]
[1760016859605,2.28293753,4380.4,4379.0,0.1136]
[1760016859606,0.1136,4379.7,4379.0,0.1136]
[1760016859774,0.81851066,4380.6,4379.1,6.6506]
[1760016859973,0.81851066,4380.6,4379.5,0.6336]
[1760016859974,2.3967595,4379.9,4379.5,0.6336]
[1760016860208,0.1136,4379.9,4379.5,0.6336]
[1760016860606,0.1136,4380.3,4379.7,0.6336]
[1760016860772,0.1136,4380.3,4379.6,0.59563313]
[1760016860773,0.1136,4380.3,4379.9,0.6336]
[1760016860973,0.1136,4380.3,4379.6,0.5728]
[1760016860974,2.28300077,4380.2,4380.1,0.6336]
[1760016861177,2.28300077,4380.2,4380.1,1.3946]
[1760016861405,2.28300077,4380.2,4379.6,0.1136]
[1760016861406,2.28311064,4380.0,4379.7,0.6336]
[1760016861611,2.28311064,4380.0,4379.6,0.1136]
[1760016861612,2.28320927,4379.8,4379.6,0.1136]
[1760016861910,10.10001514,4381.0,4379.3,2.375]
[1760016861911,2.28336568,4379.5,4379.3,2.375]
[1760016862207,0.60601066,4380.8,4377.8,0.4602]
[1760016862208,2.28358554,4379.1,4379.0,2.279]
[1760016862409,2.39718554,4379.1,4379.0,2.279]
[1760016862609,0.2125,4379.4,4379.0,2.9126]
[1760016862610,2.28344212,4379.4,4379.0,2.9126]
[1760016862811,2.39701204,4379.5,4379.1,0.65643574]
[1760016863112,2.28305289,4380.1,4379.4,0.6336]
[1760016863113,0.1136,4380.0,4379.4,0.6336]
[1760016863409,0.1136,4380.0,4379.6,0.6336]
[1760016863815,2.39671966,4380.0,4379.6,0.6336]
[1760016864108,0.1136,4380.0,4379.7,0.02283261]
[1760016864311,0.1136,4380.0,4379.9,0.6336]
[1760016864512,0.1136,4380.5,4379.9,0.65643157]
[1760016864806,0.074,4381.0,4380.2,0.6336]
[1760016864807,2.35659308,4381.0,4380.2,0.6336]
[1760016864980,0.1136,4380.9,4380.3,2.39782948]
[1760016865588,0.1136,4380.9,4380.1,0.6336]
[1760016865589,0.1732,4381.0,4379.0,0.4592]
[1760016865787,2.28273306,4380.8,4379.2,2.91708298]
[1760016865982,0.1732,4381.0,4379.4,0.6336]
[1760016865983,2.28280039,4380.6,4379.4,0.6336]
[1760016866186,2.28280039,4380.6,4379.8,0.6336]
[1760016866397,2.28280039,4380.6,4379.9,0.02283157]
[1760016866712,2.28274022,4380.7,4379.9,2.30598701]
[1760016866918,2.28274022,4380.7,4379.6,0.6336]
[1760016867101,2.35659344,4381.0,4379.6,0.6336]
[1760016867102,0.074,4381.0,4379.8,0.6336]
[1760016867304,0.074,4381.0,4378.5,9.5]
[1760016867305,2.28305904,4380.1,4379.9,6.528]
[1760016867503,2.28305289,4380.1,4380.0,0.6336]
[1760016867705,2.28278668,4380.7,4380.0,0.65643105]
[1760016867905,2.28263598,4380.9,4380.0,2.93950963]
[1760016868105,0.074,4381.0,4380.0,0.65643105]
[1760016868417,2.35659913,4381.0,4380.0,0.6336]
[1760016868619,0.074,4381.0,4380.5,0.6336]
[1760016868836,2.356592,4381.0,4380.7,0.6336]
[1760016869047,0.0732,4381.0,4380.9,0.6336]
[1760016869191,0.0732,4381.0,4380.9,0.65642635]
[1760016869520,0.0732,4381.0,4380.9,0.6336]
[1760016871490,0.0732,4381.0,4380.9,1.11772635]
[1760016871691,0.0732,4381.0,4380.9,3.40036233]
[1760016872186,0.0732,4381.0,4380.2,1.0949]
[1760016872389,0.0732,4381.0,4380.4,0.6336]
[1760016872607,0.0732,4381.0,4380.9,0.6336]
[1760016872797,0.0732,4381.0,4380.9,7.1576]
[1760016873198,0.0732,4381.0,4380.9,7.6189]
[1760016873400,0.0732,4381.0,4380.9,1.0949]
[1760016873618,0.0732,4381.0,4380.9,9.9929]
[1760016874003,0.0732,4381.0,4380.9,12.27553598]
[1760016874214,0.0732,4381.0,4380.9,12.27353598]
[1760016874524,0.0732,4381.0,4380.9,9.9909]
[1760016874735,0.0732,4381.0,4380.1,0.2345]
[1760016874736,0.0732,4381.0,4380.4,0.6336]
[1760016874935,0.0732,4381.0,4379.6,0.4613]
[1760016874936,2.355789,4381.0,4380.5,2.912]
[1760016875093,2.28270281,4380.8,4380.6,2.374]
[1760016875292,0.0732,4381.0,4380.6,2.374]
[1760016875489,2.28264174,4380.9,4380.6,2.374]
[1760016875715,0.0732,4381.0,4380.6,2.374]
[1760016875716,0.0732,4381.0,4380.7,0.6336]
[1760016875925,2.28268809,4380.8,4380.7,0.6336]
[1760016876630,0.0732,4381.0,4380.7,0.6564274]
[1760016876929,0.0732,4381.0,4380.9,2.91623598]
[1760016877427,0.0732,4381.0,4380.9,3.37753598]
[1760016878126,0.0732,4381.0,4380.9,1.0949]
[1760016878496,0.0732,4381.0,4380.9,2.374]
[1760016878715,0.0732,4381.0,4380.9,6.7676]
[1760016878915,0.0732,4381.0,4380.9,7.2289]
[1760016879318,0.0732,4381.0,4380.9,9.51153598]
[1760016880134,0.0732,4381.0,4380.9,28.52732598]
[1760016880432,0.0732,4381.0,4380.9,16.29565898]
[1760016880635,0.0732,4381.0,4380.9,7.1626]
[1760016880840,0.0732,4381.0,4379.8,0.2345]
[1760016880841,0.0732,4381.0,4380.6,0.4613]
[1760016881045,0.0732,4381.0,4380.7,9.3871274]
[1760016881344,0.0732,4381.0,4380.8,9.3643]
[1760016881571,0.0732,4381.0,4380.9,2.85812635]
[1760016881741,0.0732,4381.0,4380.9,5.77436233]
[1760016881944,0.0732,4381.0,4380.9,5.75153598]
[1760016882266,0.0732,4381.0,4380.9,23.94299098]
[1760016882683,0.002,4381.4,4381.3,2.91602758]
[1760016882830,0.002,4381.4,4381.3,9.44402758]
[1760016883030,0.002,4381.4,4381.3,9.90532758]
[1760016883461,0.002,4381.4,4381.3,21.77432758]
[1760016884364,0.002,4381.4,4381.3,50.37411458]
[1760016884665,0.002,4381.9,4381.6,0.6336]
[1760016884845,0.002,4381.9,4381.8,32.82794214]
[1760016885042,0.002,4381.9,4381.8,32.38541814]
[1760016885358,0.002,4381.9,4381.8,35.29706714]
[1760016885558,0.002,4381.9,4381.8,35.57305011]
[1760016885948,0.002,4381.9,4381.8,35.29706714]
[1760016886258,2.28051283,4385.0,4384.1,0.6336]
[1760016886459,0.0991,4385.6,4384.3,0.6336]
[1760016886662,2.28057542,4384.9,4384.5,0.6336]
[1760016887161,0.1136,4385.1,4384.5,0.6336]
[1760016887369,0.1136,4385.1,4383.5,0.6336]
[1760016887370,0.0991,4385.1,4383.5,0.6336]
[1760016887661,2.28123003,4383.6,4383.5,2.373]
[1760016887850,2.28081311,4384.5,4383.5,2.373]
[1760016887851,2.37991311,4384.5,4383.6,0.75]
[1760016888053,2.2812365,4383.6,4383.5,2.373]
[1760016888255,2.28139045,4383.3,4382.5,2.3813]
[1760016888564,2.52601066,4384.9,4382.8,0.6336]
[1760016888751,1.21120419,4385.5,4382.9,0.4613]
[1760016888752,2.28080153,4384.5,4382.9,0.4613]
[1760016888950,0.48402396,4385.1,4382.9,0.4613]
[1760016888951,2.28091894,4384.2,4383.5,0.6336]
[1760016889151,2.28087565,4384.3,4383.7,0.6336]
[1760016889361,2.28087565,4384.3,4382.7,1.92]
[1760016889362,0.099,4384.5,4383.1,0.0228149]
[1760016889545,0.099,4384.5,4382.7,0.6336]
[1760016889546,2.28112596,4383.8,4383.7,0.6336]
[1760016889746,2.28112596,4383.8,4383.7,0.8066]
[1760016890263,2.28081379,4384.4,4383.3,0.02281386]
[1760016890470,2.28081379,4384.4,4381.3,9.493]
[1760016890471,0.1075,4383.4,4381.8,0.4613]
[1760016890767,2.28156414,4383.0,4382.2,1.92]
[1760016890964,0.1075,4383.4,4381.8,0.4613]
[1760016891166,2.28176431,4382.6,4381.8,0.4613]
[1760016891342,2.28168577,4382.8,4381.9,12.653]
[1760016891664,2.28143821,4383.2,4382.2,0.6336]
[1760016891967,0.099,4383.3,4381.8,0.4613]
[1760016892265,0.099,4383.3,4381.9,2.924]
[1760016892266,2.28169599,4382.8,4381.9,2.924]
[1760016892453,2.28171805,4382.7,4381.9,2.924]
[1760016892775,2.28171805,4382.7,4382.0,0.6336]
[1760016892983,2.28171805,4382.7,4382.0,2.91565771]
[1760016893148,2.38884888,4383.4,4382.0,0.6336]
[1760016893342,2.28160529,4382.9,4382.1,2.28200473]
[1760016893556,0.1075,4383.4,4382.2,7.1556]
[1760016893748,2.28164588,4382.9,4382.4,0.6336]
[1760016893947,0.1075,4383.4,4382.4,0.6336]
[1760016894179,2.28172566,4382.7,4382.4,0.6336]
[1760016894352,2.28165032,4382.8,4382.4,0.6336]
[1760016895085,2.28162935,4382.9,4382.4,0.6336]
[1760016895468,0.1075,4383.4,4382.4,0.6336]
[1760016895782,2.28168596,4382.8,4382.4,0.6336]
[1760016895955,2.28154232,4383.0,4382.4,0.6336]
[1760016896156,2.28143722,4383.3,4382.4,0.6336]
[1760016896356,0.1074,4383.8,4382.6,0.6336]
[1760016896556,2.28143478,4383.3,4382.7,0.02281698]
[1760016896762,0.1074,4383.8,4382.7,0.02281698]
[1760016896987,2.38853273,4383.8,4382.9,0.6336]
[1760016897280,0.099,4384.0,4382.5,11.63509738]
[1760016897281,2.28109232,4383.9,4382.6,0.6336]
[1760016897446,2.28109232,4383.9,4382.5,9.3533]
[1760016897447,0.1136,4383.7,4383.1,0.6336]
[1760016897652,0.1136,4383.7,4383.0,0.1136]
[1760016897653,0.1136,4383.7,4383.3,0.6336]
[1760016897847,0.1136,4383.7,4383.4,2.39581334]
[1760016898079,2.28128208,4383.5,4383.4,3.0066]
[1760016898269,2.28123973,4383.6,4383.4,3.0066]
[1760016898469,2.39482602,4383.7,4383.4,3.0066]
[1760016898671,2.28026214,4385.5,4383.4,3.0066]
[1760016898672,2.28061981,4384.8,4383.8,2.28110251]
[1760016898871,0.1136,4384.5,4383.9,7.17441073]
[1760016899061,0.1136,4384.5,4384.1,0.6336]
[1760016899262,0.1136,4384.5,4384.0,2.4174321]
[1760016899263,0.1136,4384.5,4384.3,0.6336]
[1760016899469,0.1136,4384.5,4384.4,6.53980813]
[1760016899780,0.1136,4384.5,4384.4,6.517]
[1760016900155,0.48562843,4385.3,4384.4,7.1506]
[1760016900354,0.1136,4384.9,4384.4,7.1506]
[1760016900783,0.1136,4384.9,4384.0,0.5447]
[1760016900784,2.28076177,4384.5,4384.0,0.1136]
[1760016900982,2.28035981,4385.3,4384.0,0.1136]
[1760016900983,2.28096986,4384.1,4384.0,0.144]
[1760016901184,2.28070975,4384.6,4384.1,0.6336]
[1760016901355,0.48562843,4385.0,4384.1,0.6336]
[1760016901557,0.70511066,4384.9,4383.7,2.373]
[1760016901752,2.28112596,4383.8,4383.7,2.373]
[1760016901989,0.80746946,4385.0,4383.8,0.6336]
[1760016901990,0.48562843,4384.6,4383.8,0.6336]
[1760016902188,0.1072,4383.9,4382.2,0.4311]
[1760016902487,0.1072,4383.9,4381.6,0.2165]
[1760016902488,2.2820109,4382.1,4382.0,0.415]
[1760016902795,0.48557992,4382.7,4382.0,2.587]
[1760016902968,2.2820109,4382.1,4382.0,2.587]
[1760016903172,2.2819696,4382.2,4382.0,2.588]
[1760016903371,2.2820109,4382.1,4382.0,2.588]
[1760016903574,2.3812109,4382.1,4382.0,5.045]
[1760016903783,0.70521066,4383.0,4382.0,5.045]
[1760016904096,2.2820109,4382.1,4382.0,5.045]
[1760016904277,2.2820109,4382.1,4382.0,0.001]
[1760016904472,2.3812109,4382.1,4382.0,0.001]
[1760016904674,4.3012109,4382.1,4382.0,0.001]
[1760016904885,4.78677104,4382.1,4382.0,0.001]
[1760016905100,5.3927817,4382.1,4382.0,0.001]
[1760016905277,4.78677104,4382.1,4382.0,0.001]
[1760016905612,5.3927817,4382.1,4382.0,0.001]
[1760016905797,4.78677104,4382.1,4382.0,0.001]
[1760016907831,5.59604263,4382.1,4382.0,0.001]
[1760016908015,4.78677104,4382.1,4382.0,0.001]
[1760016908421,5.39355263,4382.1,4382.0,0.001]
[1760016908604,4.78677104,4382.1,4382.0,0.001]
[1760016909031,2.86677104,4382.1,4382.0,0.001]
[1760016909223,2.3812109,4382.1,4382.0,0.001]
[1760016909405,2.86677104,4382.1,4382.0,0.001]
[1760016912118,3.47280284,4382.1,4382.0,0.001]
[1760016913006,2.28263598,4380.9,4380.8,0.001]
[1760016913240,2.28263598,4380.9,4379.4,2.373]
[1760016913241,2.28284442,4380.5,4379.4,2.373]
[1760016913411,4.20284442,4380.5,4378.2,0.2238]
[1760016913599,4.20284442,4380.5,4379.4,0.06]
[1760016913600,2.28305289,4380.1,4379.4,0.06]
[1760016914001,2.38035289,4380.1,4379.4,0.06]
[1760016914231,2.37955289,4380.1,4379.4,0.06]
[1760016914601,2.37955289,4380.1,4379.5,0.6336]
[1760016915125,2.37955289,4380.1,4379.3,0.6336]
[1760016915941,2.37955289,4380.1,4378.2,0.2238]
[1760016916141,2.37955289,4380.1,4379.1,5.527]
[1760016916520,2.37955289,4380.1,4379.2,0.6336]
[1760016919098,2.37955289,4380.1,4378.1,0.2248]
[1760016919359,2.37955289,4380.1,4377.8,0.001]
[1760016919361,21.03523996,4380.1,4377.8,0.001]
[1760016919656,2.28420018,4377.9,4377.8,0.001]
[1760016920638,2.2839915,4378.3,4377.8,0.001]
[1760016920967,0.1117,4378.4,4377.8,0.001]
[1760016921134,2.28420018,4377.9,4377.8,0.001]
[1760016921829,2.28420018,4377.9,4377.8,0.6346]
[1760016922034,2.28420018,4377.9,4377.8,0.001]
[1760016922035,2.38320018,4377.9,4377.8,0.001]
[1760016925727,2.28420018,4377.9,4377.8,0.001]
[1760016926125,2.38320018,4377.9,4377.8,0.001]
[1760016926875,1.92,4377.7,4376.0,2.375]
[1760016927036,1.92,4377.7,4375.1,9.5]
[1760016927037,2.28497398,4376.5,4375.9,2.432]
[1760016927239,0.098,4377.1,4375.7,4.251]
[1760016927473,0.098,4377.1,4375.8,2.39785296]
[1760016927672,2.28499393,4376.4,4375.8,0.02285296]
[1760016927894,2.28499393,4376.4,4375.3,2.71664498]
[1760016927895,0.098,4376.8,4375.9,6.636]
[1760016928077,2.2848711,4376.7,4376.0,0.02285191]
[1760016928248,2.28489079,4376.6,4376.0,0.65645191]
[1760016928446,0.098,4377.4,4376.0,0.6336]
[1760016929171,0.098,4377.4,4376.3,0.6336]
[1760016929354,2.28477908,4376.8,4376.1,0.6336]
[1760016929551,1.92,4377.8,4376.3,0.6336]
[1760016929750,0.098,4377.9,4376.4,0.02284983]
[1760016930098,0.098,4377.9,4375.1,0.4598]
[1760016930244,2.28499251,4376.4,4375.4,2.28549929]
[1760016930444,2.28435672,4377.6,4375.5,0.4598]
[1760016930648,2.28507658,4376.3,4375.6,0.6336]
[1760016930881,0.76,4377.8,4375.8,0.6336]
[1760016931180,0.098,4377.7,4376.1,2.91869852]
[1760016931364,2.28477594,4376.8,4376.0,0.6336]
[1760016931671,2.28502606,4376.4,4376.2,0.6336]
[1760016931871,0.098,4376.7,4376.2,0.6336]
[1760016932072,2.94517109,4380.4,4376.0,2.375]
[1760016932073,2.28497053,4376.5,4376.0,0.6336]
[1760016932374,2.28497053,4376.5,4375.9,8.888]
[1760016932375,2.28461903,4377.1,4376.2,2.91867725]
[1760016932578,0.48116279,4377.7,4376.3,0.02285035]
[1760016932871,2.28435612,4377.7,4376.8,0.6336]
[1760016933071,0.098,4378.2,4377.0,0.6336]
[1760016933072,2.28435992,4377.6,4377.0,0.6336]
[1760016933274,0.48208226,4377.8,4377.1,0.02284617]
[1760016933452,0.71479465,4378.4,4377.2,0.02284565]
[1760016933650,0.1117,4378.4,4377.4,0.6336]
[1760016933842,2.28430588,4377.7,4377.4,0.6336]
[1760016934041,2.28426764,4377.8,4377.6,0.6336]
[1760016934668,2.28414801,4378.0,4376.5,0.4598]
[1760016934867,2.28414801,4378.0,4376.4,2.28494007]
[1760016934868,0.098,4377.7,4376.4,2.375]
[1760016935103,2.28483458,4376.7,4376.5,4.695]
[1760016935306,0.098,4377.3,4375.4,0.4598]
[1760016935507,0.48208226,4377.7,4374.2,0.45174534]
[1760016935508,0.098,4376.6,4375.5,11.878]
[1760016935667,2.28513518,4376.2,4375.5,11.986]
[1760016935867,2.28493163,4376.5,4375.5,11.986]
[1760016936075,2.28497563,4376.5,4375.6,2.28538187]
[1760016936280,0.48208226,4376.9,4375.7,2.28533212]
[1760016936485,0.48208226,4377.0,4375.8,0.65645296]
[1760016936686,0.1136,4376.3,4375.8,0.65645296]
[1760016936917,0.1136,4376.3,4375.8,0.02285296]
[1760016937475,0.48208226,4376.9,4375.8,0.02285296]
[1760016937476,0.48208226,4376.9,4376.0,0.6336]
[1760016937677,0.48208226,4377.1,4376.1,0.02285139]
[1760016937932,2.28465165,4377.1,4376.2,0.02285087]
[1760016938208,0.48208226,4377.2,4376.4,0.6336]
[1760016938378,2.28482648,4376.7,4376.4,0.6336]
[1760016938577,2.28478874,4376.8,4376.4,0.6336]
[1760016938874,2.28477583,4376.8,4376.4,0.6336]
[1760016939083,0.48208226,4377.0,4376.4,0.6336]
[1760016939277,0.70109465,4377.3,4376.3,5.577]
[1760016939278,0.48128226,4376.9,4376.3,6.515]
[1760016939616,2.28508751,4376.2,4376.1,5.808]
[1760016939777,2.28508751,4376.2,4376.1,0.6336]
[1760016940112,2.28508751,4376.2,4375.0,12.01450948]
[1760016940113,2.28538496,4375.7,4374.7,2.28586361]
[1760016940413,2.28538496,4375.7,4374.0,2.51101034]
[1760016940414,2.2854081,4375.6,4374.8,6.427]
[1760016940585,2.28545309,4375.5,4374.9,6.427]
[1760016940787,0.2052,4375.8,4374.2,0.4598]
[1760016941011,2.28569669,4375.1,4374.3,2.771]
[1760016941179,0.60309465,4375.7,4374.3,2.771]
[1760016941504,0.60309465,4375.7,4374.1,9.505]
[1760016941505,2.28578385,4374.9,4374.1,6.519]
[1760016941716,2.28586377,4374.8,4374.1,6.519]
[1760016941918,0.70209465,4375.1,4374.2,6.519]
[1760016941919,2.28597682,4374.5,4374.2,6.519]
[1760016942225,2.28587506,4374.7,4374.2,6.519]
[1760016942439,2.28587506,4374.7,4372.2,9.505]
[1760016942440,2.28581878,4374.8,4373.4,0.4598]
[1760016942735,0.60309465,4374.1,4372.4,0.481]
[1760016943041,1.61493893,4375.3,4371.6,10.1884509]
[1760016943042,0.60309465,4374.5,4372.8,30.0]
[1760016943205,1.61493893,4375.7,4374.4,0.227]
[1760016943206,0.60309465,4375.4,4374.4,0.227]
[1760016943390,0.1062,4376.2,4374.6,0.6336]
[1760016943391,0.60309465,4375.8,4374.6,0.6336]
[1760016943724,2.88840197,4375.8,4374.6,0.6336]
[1760016943885,0.60309465,4375.7,4374.7,8.904]
[1760016944090,0.60309465,4375.6,4374.9,0.6336]
[1760016944286,0.0991,4376.1,4374.2,0.6336]
[1760016944287,0.60309465,4375.5,4374.2,0.6336]
[1760016944487,0.60309465,4375.5,4374.3,2.824]
[1760016944488,0.60309465,4375.2,4374.3,2.824]
[1760016944791,2.28593409,4374.6,4374.3,3.032]
[1760016945008,0.60309465,4375.0,4374.3,3.032]
[1760016945211,0.90644019,4375.3,4374.4,0.6336]
[1760016945212,0.70219465,4374.9,4374.4,0.6336]
[1760016945426,2.28555966,4375.3,4372.2,4.745]
[1760016945427,0.80734019,4374.7,4372.2,4.745]
[1760016945611,2.89098349,4373.6,4372.3,0.4739]
[1760016945814,0.60452219,4373.6,4372.3,0.4739]
[1760016945988,0.60452219,4373.7,4372.8,2.28682637]
[1760016946191,0.80602959,4374.0,4373.0,15.387945]
[1760016946192,0.60452219,4374.0,4373.0,15.387945]
[1760016946410,0.60452219,4374.4,4373.9,2.91987838]
[1760016946608,0.80602959,4374.7,4372.9,11.882]
[1760016946609,0.60452219,4374.7,4374.1,0.6336]
[1760016946810,0.0991,4375.4,4374.7,0.6336]
[1760016946811,0.60452219,4374.8,4374.7,0.6336]
[1760016947121,0.80602959,4375.1,4374.3,0.6336]
[1760016947122,0.60452219,4375.1,4374.3,0.6336]
[1760016947319,0.60452219,4375.1,4371.2,2.28765436]
[1760016947320,0.60452219,4374.4,4373.5,0.528]
[1760016947622,0.60452219,4374.5,4374.2,0.6336]
[1760016947820,2.12487366,4376.2,4374.5,0.6336]
[1760016947821,0.60452219,4374.9,4374.5,0.6336]
[1760016947997,1.61493893,4376.1,4374.3,7.0602]
[1760016947998,0.60452219,4375.4,4375.0,0.6336]
[1760016948318,0.60452219,4375.4,4374.6,5.13581275]
[1760016948319,0.60452219,4375.3,4374.6,2.8499]